[Event "Titled Tuesday Blitz February 07 Early 2023"]
[White "Lacasa Diaz, Jose Antonio"]
[Black "Lehtosaari, Mauri"]
[WhiteFideId "2203375"]
[BlackFideId "501999"]
[WhiteElo "2359"]
[BlackElo "2176"]
[Result "1-0"]
[Round "04"]
[TimeControl "180+2"]
[Date "2023.02.07"]
[WhiteClock "0:00:59"]
[BlackClock "0:00:17"]

1. e4 {[%clk 0:02:57]}  d5 {[%clk 0:03:00]} 2. exd5 {[%clk 0:02:56]}  Qxd5 {[%clk 0:03:01]} 3. Nc3 {[%clk 0:02:54]}  Qe5+ {[%clk 0:02:58]} 4. Nge2 {[%clk 0:02:44]}  c6 {[%clk 0:02:18]} 5. d4 {[%clk 0:02:36]}  Qa5 {[%clk 0:02:16]} 6. Bd2 {[%clk 0:02:36]}  Nf6 {[%clk 0:02:15]} 7. Ng3 {[%clk 0:02:28]}  Bg4 {[%clk 0:02:07]} 8. Be2 {[%clk 0:02:24]}  Bxe2 {[%clk 0:02:06]} 9. Qxe2 {[%clk 0:02:25]}  e6 {[%clk 0:02:03]} 10. O-O-O {[%clk 0:02:24]}  Be7 {[%clk 0:02:00]} 11. Kb1 {[%clk 0:02:23]}  Qc7 {[%clk 0:01:49]} 12. h4 {[%clk 0:02:17]}  h6 {[%clk 0:01:47]} 13. h5 {[%clk 0:02:16]}  Nbd7 {[%clk 0:01:42]} 14. Rhe1 {[%clk 0:02:13]}  O-O-O {[%clk 0:01:36]} 15. Qf3 {[%clk 0:02:09]}  Rhf8 {[%clk 0:01:31]} 16. Nf5 {[%clk 0:02:01]}  exf5 {[%clk 0:01:01]} 17. Rxe7 {[%clk 0:02:00]}  Qd6 {[%clk 0:01:01]} 18. Ree1 {[%clk 0:01:55]}  Qxd4 {[%clk 0:00:45]} 19. Bxh6 {[%clk 0:01:44]}  Qg4 {[%clk 0:00:45]} 20. Qxg4 {[%clk 0:01:35]}  Nxg4 {[%clk 0:00:30]} 21. Bxg7 {[%clk 0:01:35]}  Nxf2 {[%clk 0:00:26]} 22. Rd2 {[%clk 0:01:10]}  Rg8 {[%clk 0:00:23]} 23. h6 {[%clk 0:01:10]}  Ng4 {[%clk 0:00:21]} 24. Re7 {[%clk 0:01:04]}  Ndf6 {[%clk 0:00:20]} 25. Rxd8+ {[%clk 0:01:02]}  Kxd8 {[%clk 0:00:19]} 26. Rxf7 {[%clk 0:01:01]}  Ke8 {[%clk 0:00:16]} 27. Rxb7 {[%clk 0:01:01]}  Kd8 {[%clk 0:00:17]} 28. Rb8+ {[%clk 0:00:59]} 1-0


[Site "https://www.chess.com"]

[Event "Titled Tuesday Blitz February 07 Early 2023"]
[White "Schut, Han"]
[Black "Bethke, Richard"]
[WhiteFideId "1005561"]
[BlackFideId "12959243"]
[WhiteElo "2101"]
[BlackElo "2382"]
[Result "0-1"]
[Round "04"]
[TimeControl "180+2"]
[Date "2023.02.07"]
[WhiteClock "0:00:53"]
[BlackClock "0:01:55"]

1. e4 {[%clk 0:02:48]}  c6 {[%clk 0:02:59]} 2. d4 {[%clk 0:02:48]}  d5 {[%clk 0:03:00]} 3. e5 {[%clk 0:02:48]}  c5 {[%clk 0:02:58]} 4. dxc5 {[%clk 0:02:48]}  e6 {[%clk 0:02:57]} 5. a3 {[%clk 0:02:47]}  Bxc5 {[%clk 0:02:56]} 6. b4 {[%clk 0:02:47]}  Bb6 {[%clk 0:02:51]} 7. Bb2 {[%clk 0:02:42]}  Ne7 {[%clk 0:02:51]} 8. c4 {[%clk 0:02:42]}  dxc4 {[%clk 0:02:46]} 9. Qxd8+ {[%clk 0:02:37]}  Bxd8 {[%clk 0:02:47]} 10. Bxc4 {[%clk 0:02:37]}  Nbc6 {[%clk 0:02:44]} 11. Nf3 {[%clk 0:02:30]}  O-O {[%clk 0:02:42]} 12. O-O {[%clk 0:02:24]}  Ng6 {[%clk 0:02:41]} 13. Nbd2 {[%clk 0:02:17]}  Bc7 {[%clk 0:02:41]} 14. Rfe1 {[%clk 0:02:17]}  Rd8 {[%clk 0:02:40]} 15. Rad1 {[%clk 0:02:04]}  b6 {[%clk 0:02:40]} 16. g3 {[%clk 0:01:45]}  Bb7 {[%clk 0:02:18]} 17. h4 {[%clk 0:01:45]}  Rac8 {[%clk 0:02:12]} 18. h5 {[%clk 0:01:40]}  Ngxe5 {[%clk 0:02:05]} 19. Nxe5 {[%clk 0:01:13]}  Nxe5 {[%clk 0:02:04]} 20. Bxe5 {[%clk 0:01:04]}  Bxe5 {[%clk 0:02:03]} 21. Bxe6 {[%clk 0:00:54]}  fxe6 {[%clk 0:02:00]} 22. Rxe5 {[%clk 0:00:54]}  Rxd2 {[%clk 0:01:56]} 23. Rxd2 {[%clk 0:00:52]}  Rc1+ {[%clk 0:01:55]} 24. Kh2 {[%clk 0:00:53]}  Rh1# {[%clk 0:01:55]} 0-1


[Site "https://www.chess.com"]

[Event "Titled Tuesday Blitz February 07 Early 2023"]
[White "Prudnykova, Olga"]
[Black "Kochetov, Andrey"]
[WhiteFideId "14121093"]
[BlackFideId "24130532"]
[WhiteElo "2268"]
[BlackElo "2165"]
[Result "0-1"]
[Round "04"]
[TimeControl "180+2"]
[Date "2023.02.07"]
[WhiteClock "0:00:11"]
[BlackClock "0:00:03"]

1. e4 {[%clk 0:03:00]}  e5 {[%clk 0:03:00]} 2. d4 {[%clk 0:03:00]}  exd4 {[%clk 0:02:58]} 3. Qxd4 {[%clk 0:03:00]}  Nc6 {[%clk 0:02:58]} 4. Qc4 {[%clk 0:03:00]}  Nf6 {[%clk 0:02:58]} 5. Nc3 {[%clk 0:03:00]}  Bb4 {[%clk 0:02:55]} 6. Bg5 {[%clk 0:02:59]}  h6 {[%clk 0:02:46]} 7. Bh4 {[%clk 0:02:55]}  d6 {[%clk 0:02:16]} 8. O-O-O {[%clk 0:02:23]}  Be6 {[%clk 0:02:05]} 9. Nd5 {[%clk 0:02:23]}  g5 {[%clk 0:01:48]} 10. Bg3 {[%clk 0:02:22]}  Bc5 {[%clk 0:01:38]} 11. h4 {[%clk 0:01:59]}  g4 {[%clk 0:01:32]} 12. Qe2 {[%clk 0:01:32]}  Nd4 {[%clk 0:01:09]} 13. Qe1 {[%clk 0:01:25]}  c6 {[%clk 0:01:08]} 14. Nxf6+ {[%clk 0:01:14]}  Qxf6 {[%clk 0:01:07]} 15. e5 {[%clk 0:01:15]}  Qg6 {[%clk 0:01:07]} 16. Bd3 {[%clk 0:01:12]}  Bf5 {[%clk 0:01:02]} 17. exd6+ {[%clk 0:01:12]}  Kf8 {[%clk 0:01:00]} 18. Qe7+ {[%clk 0:01:08]}  Kg8 {[%clk 0:00:56]} 19. Be5 {[%clk 0:00:54]}  Kh7 {[%clk 0:00:26]} 20. Bxd4 {[%clk 0:00:43]}  Bxd4 {[%clk 0:00:17]} 21. Bxf5 {[%clk 0:00:42]}  Qxf5 {[%clk 0:00:17]} 22. Rxd4 {[%clk 0:00:39]}  Rhe8 {[%clk 0:00:16]} 23. Qxb7 {[%clk 0:00:18]}  Re1+ {[%clk 0:00:13]} 24. Kd2 {[%clk 0:00:19]}  Qxf2+ {[%clk 0:00:11]} 25. Kc3 {[%clk 0:00:19]}  Re3+ {[%clk 0:00:08]} 26. Rd3 {[%clk 0:00:19]}  Qf6+ {[%clk 0:00:02]} 27. Kd2 {[%clk 0:00:18]}  Qf2+ {[%clk 0:00:02]} 28. Kc3 {[%clk 0:00:18]}  Qe1+ {[%clk 0:00:02]} 29. Kb3 {[%clk 0:00:17]}  Ree8 {[%clk 0:00:02]} 30. Qxf7+ {[%clk 0:00:16]}  Kh8 {[%clk 0:00:01]} 31. Qf6+ {[%clk 0:00:16]}  Kh7 {[%clk 0:00:02]} 32. Nf3 {[%clk 0:00:14]}  Rab8+ {[%clk 0:00:02]} 33. Kc4 {[%clk 0:00:11]}  Qb4# {[%clk 0:00:03]} 0-1


[Site "https://www.chess.com"]

[Event "Titled Tuesday Blitz February 07 Early 2023"]
[White "Vaglio Munoz, Jaime"]
[Black "Tymrakiewicz, Rafal"]
[WhiteFideId "6500145"]
[BlackFideId "1108832"]
[WhiteElo "2174"]
[BlackElo "2144"]
[Result "0-1"]
[Round "04"]
[TimeControl "180+2"]
[Date "2023.02.07"]
[WhiteClock "0:01:15"]
[BlackClock "0:00:39"]

1. d4 {[%clk 0:03:00]}  Nf6 {[%clk 0:02:53]} 2. g3 {[%clk 0:02:58]}  d6 {[%clk 0:02:51]} 3. Bg2 {[%clk 0:02:58]}  e5 {[%clk 0:02:51]} 4. c3 {[%clk 0:02:56]}  Be7 {[%clk 0:02:48]} 5. Nf3 {[%clk 0:02:54]}  e4 {[%clk 0:02:48]} 6. Ng5 {[%clk 0:02:53]}  d5 {[%clk 0:02:48]} 7. h4 {[%clk 0:02:52]}  O-O {[%clk 0:02:45]} 8. Bf4 {[%clk 0:02:46]}  c6 {[%clk 0:02:42]} 9. Nd2 {[%clk 0:02:43]}  Bf5 {[%clk 0:02:26]} 10. Bxb8 {[%clk 0:02:38]}  Rxb8 {[%clk 0:02:25]} 11. e3 {[%clk 0:02:39]}  b5 {[%clk 0:02:18]} 12. b4 {[%clk 0:02:36]}  a5 {[%clk 0:02:16]} 13. Nb3 {[%clk 0:02:36]}  axb4 {[%clk 0:02:12]} 14. cxb4 {[%clk 0:02:34]}  Bxb4+ {[%clk 0:02:12]} 15. Kf1 {[%clk 0:02:33]}  Ra8 {[%clk 0:01:54]} 16. Qc2 {[%clk 0:02:30]}  Bd7 {[%clk 0:01:50]} 17. Bh3 {[%clk 0:02:27]}  Qb6 {[%clk 0:01:38]} 18. Kg2 {[%clk 0:02:22]}  h6 {[%clk 0:01:35]} 19. Bxd7 {[%clk 0:02:20]}  Nxd7 {[%clk 0:01:35]} 20. Nh3 {[%clk 0:02:15]}  Rfc8 {[%clk 0:01:25]} 21. Nf4 {[%clk 0:02:13]}  Bd6 {[%clk 0:01:22]} 22. Qe2 {[%clk 0:02:05]}  Bxf4 {[%clk 0:01:18]} 23. gxf4 {[%clk 0:02:06]}  Ra4 {[%clk 0:01:17]} 24. Qg4 {[%clk 0:02:01]}  Nf6 {[%clk 0:01:16]} 25. Qf5 {[%clk 0:02:00]}  Rca8 {[%clk 0:01:09]} 26. Rhg1 {[%clk 0:01:44]}  Kf8 {[%clk 0:01:00]} 27. Kh3 {[%clk 0:01:39]}  Qd8 {[%clk 0:00:53]} 28. Nc5 {[%clk 0:01:36]}  Rxa2 {[%clk 0:00:45]} 29. Nb7 {[%clk 0:01:20]}  Qd7 {[%clk 0:00:42]} 30. Rxa2 {[%clk 0:01:16]}  Qxf5+ {[%clk 0:00:41]} 31. Kg3 {[%clk 0:01:16]}  Rxa2 {[%clk 0:00:41]} 32. Nd6 {[%clk 0:01:15]}  Qg4+ {[%clk 0:00:40]} 33. Kh2 {[%clk 0:01:14]}  Rxf2+ {[%clk 0:00:40]} 34. Rg2 {[%clk 0:01:15]}  Qxg2# {[%clk 0:00:39]} 0-1


[Site "https://www.chess.com"]

[Event "Titled Tuesday Blitz February 07 Early 2023"]
[White "sabkeIXO"]
[Black "Good, Daniel"]
[BlackFideId "1302388"]
[WhiteElo "2467"]
[BlackElo "2141"]
[Result "1/2-1/2"]
[Round "04"]
[TimeControl "180+2"]
[Date "2023.02.07"]
[WhiteClock "0:00:25"]
[BlackClock "0:00:07"]

1. e4 {[%clk 0:03:00]}  d6 {[%clk 0:02:48]} 2. d4 {[%clk 0:02:59]}  Nf6 {[%clk 0:02:43]} 3. Nc3 {[%clk 0:02:59]}  g6 {[%clk 0:02:38]} 4. Bg5 {[%clk 0:02:56]}  Bg7 {[%clk 0:02:37]} 5. Qd2 {[%clk 0:02:57]}  c6 {[%clk 0:02:34]} 6. a4 {[%clk 0:02:55]}  e5 {[%clk 0:02:23]} 7. d5 {[%clk 0:02:44]}  h6 {[%clk 0:01:53]} 8. Bxf6 {[%clk 0:02:42]}  Bxf6 {[%clk 0:01:52]} 9. Nf3 {[%clk 0:02:35]}  c5 {[%clk 0:01:49]} 10. Bb5+ {[%clk 0:02:34]}  Bd7 {[%clk 0:01:49]} 11. O-O {[%clk 0:02:31]}  a6 {[%clk 0:01:49]} 12. Bxd7+ {[%clk 0:02:30]}  Nxd7 {[%clk 0:01:50]} 13. Ne2 {[%clk 0:02:26]}  Bg7 {[%clk 0:01:48]} 14. Ne1 {[%clk 0:02:22]}  O-O {[%clk 0:01:47]} 15. c3 {[%clk 0:02:13]}  c4 {[%clk 0:01:43]} 16. Nc2 {[%clk 0:02:09]}  Nc5 {[%clk 0:01:42]} 17. Qe3 {[%clk 0:02:04]}  f5 {[%clk 0:01:36]} 18. exf5 {[%clk 0:01:58]}  gxf5 {[%clk 0:01:35]} 19. Na3 {[%clk 0:01:52]}  f4 {[%clk 0:01:25]} 20. Qh3 {[%clk 0:01:51]}  f3 {[%clk 0:00:47]} 21. gxf3 {[%clk 0:01:49]}  Qg5+ {[%clk 0:00:47]} 22. Ng3 {[%clk 0:01:42]}  Nd3 {[%clk 0:00:47]} 23. Nxc4 {[%clk 0:01:33]}  Qe7 {[%clk 0:00:35]} 24. Qe6+ {[%clk 0:01:14]}  Qxe6 {[%clk 0:00:35]} 25. dxe6 {[%clk 0:01:15]}  d5 {[%clk 0:00:36]} 26. Nb6 {[%clk 0:01:12]}  Rae8 {[%clk 0:00:28]} 27. Nxd5 {[%clk 0:01:11]}  Rxe6 {[%clk 0:00:27]} 28. Kg2 {[%clk 0:01:10]}  Nxb2 {[%clk 0:00:25]} 29. Rab1 {[%clk 0:01:09]}  Nxa4 {[%clk 0:00:25]} 30. Rxb7 {[%clk 0:01:09]}  Rc8 {[%clk 0:00:20]} 31. Ne7+ {[%clk 0:01:01]}  Rxe7 {[%clk 0:00:20]} 32. Rxe7 {[%clk 0:01:02]}  Nxc3 {[%clk 0:00:21]} 33. Nf5 {[%clk 0:00:56]}  Bf8 {[%clk 0:00:19]} 34. Rxe5 {[%clk 0:00:55]}  Bb4 {[%clk 0:00:17]} 35. Nxh6+ {[%clk 0:00:54]}  Kg7 {[%clk 0:00:17]} 36. Ng4 {[%clk 0:00:53]}  a5 {[%clk 0:00:17]} 37. Ne3 {[%clk 0:00:48]}  a4 {[%clk 0:00:16]} 38. Nd5 {[%clk 0:00:48]}  Rc5 {[%clk 0:00:14]} 39. Re7+ {[%clk 0:00:31]}  Kf8 {[%clk 0:00:14]} 40. Nxc3 {[%clk 0:00:31]}  Kxe7 {[%clk 0:00:14]} 41. Nxa4 {[%clk 0:00:31]}  Rg5+ {[%clk 0:00:14]} 42. Kh3 {[%clk 0:00:31]}  Ra5 {[%clk 0:00:14]} 43. Nb2 {[%clk 0:00:31]}  Rh5+ {[%clk 0:00:14]} 44. Kg4 {[%clk 0:00:31]}  Rxh2 {[%clk 0:00:14]} 45. Nd3 {[%clk 0:00:30]}  Bd6 {[%clk 0:00:15]} 46. f4 {[%clk 0:00:31]}  Rg2+ {[%clk 0:00:14]} 47. Kf3 {[%clk 0:00:31]}  Rh2 {[%clk 0:00:13]} 48. Ke4 {[%clk 0:00:31]}  Kf6 {[%clk 0:00:14]} 49. Rb1 {[%clk 0:00:29]}  Bc7 {[%clk 0:00:12]} 50. Rb7 {[%clk 0:00:29]}  Bd6 {[%clk 0:00:10]} 51. Rb6 {[%clk 0:00:29]}  Ke7 {[%clk 0:00:11]} 52. f3 {[%clk 0:00:28]}  Re2+ {[%clk 0:00:10]} 53. Kd4 {[%clk 0:00:27]}  Rd2 {[%clk 0:00:10]} 54. Rb7+ {[%clk 0:00:26]}  Kf6 {[%clk 0:00:10]} 55. Rb6 {[%clk 0:00:26]}  Ke7 {[%clk 0:00:10]} 56. Ra6 {[%clk 0:00:27]}  Bxf4 {[%clk 0:00:09]} 57. Ra7+ {[%clk 0:00:26]}  Kf6 {[%clk 0:00:09]} 58. Ra6+ {[%clk 0:00:26]}  Ke7 {[%clk 0:00:09]} 59. Ke4 {[%clk 0:00:23]}  Bd6 {[%clk 0:00:09]} 60. Ra7+ {[%clk 0:00:22]}  Ke6 {[%clk 0:00:08]} 61. Nf4+ {[%clk 0:00:23]}  Bxf4 {[%clk 0:00:08]} 62. Kxf4 {[%clk 0:00:24]}  Kf6 {[%clk 0:00:08]} 63. Ra6+ {[%clk 0:00:23]}  Kf7 {[%clk 0:00:08]} 64. Kf5 {[%clk 0:00:23]}  Rd5+ {[%clk 0:00:08]} 65. Kg4 {[%clk 0:00:24]}  Rb5 {[%clk 0:00:08]} 66. f4 {[%clk 0:00:24]}  Rc5 {[%clk 0:00:09]} 67. f5 {[%clk 0:00:24]}  Rc1 {[%clk 0:00:06]} 68. Ra7+ {[%clk 0:00:24]}  Kf8 {[%clk 0:00:07]} 69. Kg5 {[%clk 0:00:24]}  Rc6 {[%clk 0:00:07]} 70. Rb7 {[%clk 0:00:23]}  Ra6 {[%clk 0:00:07]} 71. Rd7 {[%clk 0:00:22]}  Rb6 {[%clk 0:00:07]} 72. Kf4 {[%clk 0:00:22]}  Rc6 {[%clk 0:00:07]} 73. Ke5 {[%clk 0:00:23]}  Ra6 {[%clk 0:00:07]} 74. Rd8+ {[%clk 0:00:18]}  Ke7 {[%clk 0:00:06]} 75. Rb8 {[%clk 0:00:18]}  Kf7 {[%clk 0:00:06]} 76. Rb7+ {[%clk 0:00:18]}  Kf8 {[%clk 0:00:06]} 77. f6 {[%clk 0:00:18]}  Ra1 {[%clk 0:00:04]} 78. Rb8+ {[%clk 0:00:19]}  Kf7 {[%clk 0:00:04]} 79. Rb7+ {[%clk 0:00:20]}  Kf8 {[%clk 0:00:05]} 80. Rb4 {[%clk 0:00:20]}  Re1+ {[%clk 0:00:04]} 81. Kf5 {[%clk 0:00:20]}  Rf1+ {[%clk 0:00:04]} 82. Rf4 {[%clk 0:00:21]}  Rxf4+ {[%clk 0:00:05]} 83. Kxf4 {[%clk 0:00:22]}  Kf7 {[%clk 0:00:05]} 84. Kf5 {[%clk 0:00:22]}  Kf8 {[%clk 0:00:06]} 85. Ke6 {[%clk 0:00:23]}  Ke8 {[%clk 0:00:06]} 86. f7+ {[%clk 0:00:24]}  Kf8 {[%clk 0:00:07]} 87. Kf6 {[%clk 0:00:25]} 1/2-1/2


[Site "https://www.chess.com"]

[Event "Titled Tuesday Blitz February 07 Early 2023"]
[White "Yeritsyan, Hayk"]
[Black "Magallanes, Rey Jomar"]
[WhiteFideId "13307320"]
[BlackFideId "5205948"]
[WhiteElo "2241"]
[BlackElo "2052"]
[Result "1-0"]
[Round "04"]
[TimeControl "180+2"]
[Date "2023.02.07"]
[WhiteClock "0:00:29"]
[BlackClock "0:00:01"]

1. e4 {[%clk 0:02:36]}  c5 {[%clk 0:02:59]} 2. Nf3 {[%clk 0:02:36]}  d6 {[%clk 0:03:00]} 3. Bb5+ {[%clk 0:02:33]}  Bd7 {[%clk 0:02:59]} 4. Bxd7+ {[%clk 0:02:31]}  Qxd7 {[%clk 0:03:00]} 5. d4 {[%clk 0:02:29]}  cxd4 {[%clk 0:02:59]} 6. Qxd4 {[%clk 0:02:29]}  Nc6 {[%clk 0:02:59]} 7. Qe3 {[%clk 0:02:30]}  Nf6 {[%clk 0:02:59]} 8. Nc3 {[%clk 0:02:30]}  e6 {[%clk 0:02:59]} 9. O-O {[%clk 0:02:30]}  Be7 {[%clk 0:03:00]} 10. Rd1 {[%clk 0:02:30]}  a6 {[%clk 0:02:07]} 11. Qe2 {[%clk 0:02:21]}  Qc7 {[%clk 0:02:06]} 12. Bf4 {[%clk 0:02:18]}  Ng4 {[%clk 0:01:42]} 13. h3 {[%clk 0:01:55]}  Nge5 {[%clk 0:01:42]} 14. Nxe5 {[%clk 0:01:52]}  dxe5 {[%clk 0:01:40]} 15. Be3 {[%clk 0:01:51]}  O-O {[%clk 0:01:24]} 16. Qg4 {[%clk 0:01:46]}  Rfd8 {[%clk 0:01:16]} 17. Ne2 {[%clk 0:01:44]}  Nb4 {[%clk 0:01:04]} 18. c3 {[%clk 0:01:38]}  Nd3 {[%clk 0:00:47]} 19. Rd2 {[%clk 0:01:26]}  Bc5 {[%clk 0:00:29]} 20. Rad1 {[%clk 0:01:22]}  Bxe3 {[%clk 0:00:24]} 21. Rxd3 {[%clk 0:01:21]}  Bc5 {[%clk 0:00:20]} 22. Ng3 {[%clk 0:01:19]}  Rxd3 {[%clk 0:00:19]} 23. Rxd3 {[%clk 0:01:20]}  Rd8 {[%clk 0:00:19]} 24. Nh5 {[%clk 0:01:19]}  Bf8 {[%clk 0:00:13]} 25. Rg3 {[%clk 0:00:55]}  g6 {[%clk 0:00:13]} 26. Nf6+ {[%clk 0:00:46]}  Kg7 {[%clk 0:00:13]} 27. Qh4 {[%clk 0:00:46]}  h6 {[%clk 0:00:10]} 28. Ng4 {[%clk 0:00:35]}  h5 {[%clk 0:00:07]} 29. Qf6+ {[%clk 0:00:33]}  Kh7 {[%clk 0:00:06]} 30. Nxe5 {[%clk 0:00:32]}  Bd6 {[%clk 0:00:03]} 31. Rd3 {[%clk 0:00:30]}  Be7 {[%clk 0:00:01]} 32. Qxf7+ {[%clk 0:00:29]} 1-0


[Site "https://www.chess.com"]

[Event "Titled Tuesday Blitz February 07 Early 2023"]
[White "Minko, Dmitry"]
[Black "Serpi, Andrea"]
[WhiteFideId "24188468"]
[BlackFideId "2847499"]
[WhiteElo "2247"]
[BlackElo "2191"]
[Result "0-1"]
[Round "04"]
[TimeControl "180+2"]
[Date "2023.02.07"]
[WhiteClock "0:00:02"]
[BlackClock "0:00:13"]

1. e4 {[%clk 0:03:00]}  e6 {[%clk 0:02:59]} 2. d4 {[%clk 0:03:00]}  d5 {[%clk 0:03:00]} 3. Nc3 {[%clk 0:03:01]}  Bb4 {[%clk 0:03:00]} 4. e5 {[%clk 0:03:01]}  c5 {[%clk 0:03:00]} 5. a3 {[%clk 0:03:02]}  Bxc3+ {[%clk 0:03:00]} 6. bxc3 {[%clk 0:03:03]}  Ne7 {[%clk 0:03:00]} 7. h4 {[%clk 0:03:03]}  Qa5 {[%clk 0:02:55]} 8. Bd2 {[%clk 0:02:47]}  Qa4 {[%clk 0:02:55]} 9. Nf3 {[%clk 0:02:43]}  Nbc6 {[%clk 0:02:54]} 10. h5 {[%clk 0:02:31]}  b6 {[%clk 0:02:51]} 11. h6 {[%clk 0:02:30]}  gxh6 {[%clk 0:02:51]} 12. Bxh6 {[%clk 0:02:21]}  Ba6 {[%clk 0:02:51]} 13. Bg7 {[%clk 0:01:51]}  Rg8 {[%clk 0:02:50]} 14. Bf6 {[%clk 0:01:52]}  Bxf1 {[%clk 0:02:48]} 15. Kxf1 {[%clk 0:01:52]}  Qc4+ {[%clk 0:02:43]} 16. Qd3 {[%clk 0:01:38]}  Qxd3+ {[%clk 0:02:33]} 17. cxd3 {[%clk 0:01:39]}  cxd4 {[%clk 0:02:33]} 18. cxd4 {[%clk 0:01:38]}  Nf5 {[%clk 0:02:33]} 19. Rc1 {[%clk 0:01:34]}  Rc8 {[%clk 0:02:04]} 20. Rxh7 {[%clk 0:01:32]}  Nce7 {[%clk 0:02:00]} 21. Rxc8+ {[%clk 0:01:26]}  Nxc8 {[%clk 0:02:01]} 22. Ng5 {[%clk 0:00:34]}  Rf8 {[%clk 0:01:53]} 23. Nf3 {[%clk 0:00:24]}  Rg8 {[%clk 0:01:44]} 24. g3 {[%clk 0:00:16]}  Nce7 {[%clk 0:01:44]} 25. Ng5 {[%clk 0:00:14]}  Rf8 {[%clk 0:01:38]} 26. Nxe6 {[%clk 0:00:10]}  fxe6 {[%clk 0:01:33]} 27. g4 {[%clk 0:00:10]}  Rf7 {[%clk 0:01:15]} 28. Rh8+ {[%clk 0:00:06]}  Kd7 {[%clk 0:01:15]} 29. gxf5 {[%clk 0:00:07]}  Nxf5 {[%clk 0:01:12]} 30. Ra8 {[%clk 0:00:05]}  Kc6 {[%clk 0:01:11]} 31. Ke2 {[%clk 0:00:05]}  Nxd4+ {[%clk 0:01:11]} 32. Kd2 {[%clk 0:00:05]}  Rh7 {[%clk 0:01:01]} 33. Re8 {[%clk 0:00:04]}  Rh3 {[%clk 0:00:54]} 34. Kc3 {[%clk 0:00:04]}  Nb5+ {[%clk 0:00:51]} 35. Kd2 {[%clk 0:00:03]}  Nd4 {[%clk 0:00:47]} 36. Kc3 {[%clk 0:00:03]}  Nb5+ {[%clk 0:00:48]} 37. Kb4 {[%clk 0:00:03]}  a5+ {[%clk 0:00:42]} 38. Ka4 {[%clk 0:00:03]}  Nc3+ {[%clk 0:00:30]} 39. Kb3 {[%clk 0:00:03]}  Rxd3 {[%clk 0:00:28]} 40. Rxe6+ {[%clk 0:00:03]}  Kb5 {[%clk 0:00:28]} 41. Kc2 {[%clk 0:00:03]}  Rf3 {[%clk 0:00:27]} 42. Re8 {[%clk 0:00:03]}  Ne4 {[%clk 0:00:26]} 43. Bh8 {[%clk 0:00:03]}  Rxf2+ {[%clk 0:00:20]} 44. Kd3 {[%clk 0:00:02]}  Rf3+ {[%clk 0:00:18]} 45. Kd4 {[%clk 0:00:02]}  Ng5 {[%clk 0:00:13]} 46. Kxd5 {[%clk 0:00:02]}  Rd3# {[%clk 0:00:13]} 0-1


[Site "https://www.chess.com"]

[Event "Titled Tuesday Blitz February 07 Early 2023"]
[White "Larina, Maria"]
[Black "Andrews, Todd"]
[WhiteFideId "24113182"]
[BlackFideId "2012456"]
[WhiteElo "1948"]
[BlackElo "2220"]
[Result "1-0"]
[Round "04"]
[TimeControl "180+2"]
[Date "2023.02.07"]
[WhiteClock "0:00:06"]
[BlackClock "0:00:06"]

1. e4 {[%clk 0:03:00]}  e6 {[%clk 0:02:53]} 2. d4 {[%clk 0:03:00]}  d5 {[%clk 0:02:52]} 3. Nc3 {[%clk 0:03:00]}  Bb4 {[%clk 0:02:49]} 4. exd5 {[%clk 0:03:00]}  exd5 {[%clk 0:02:49]} 5. Bd3 {[%clk 0:03:01]}  Nc6 {[%clk 0:02:49]} 6. Ne2 {[%clk 0:02:49]}  Bg4 {[%clk 0:02:49]} 7. f3 {[%clk 0:02:49]}  Bh5 {[%clk 0:02:49]} 8. O-O {[%clk 0:02:49]}  Bg6 {[%clk 0:02:48]} 9. a3 {[%clk 0:02:48]}  Bxc3 {[%clk 0:02:46]} 10. bxc3 {[%clk 0:02:45]}  Nge7 {[%clk 0:02:46]} 11. Bg5 {[%clk 0:02:32]}  f6 {[%clk 0:02:44]} 12. Bh4 {[%clk 0:02:27]}  Qd7 {[%clk 0:02:43]} 13. Rb1 {[%clk 0:02:21]}  b6 {[%clk 0:02:38]} 14. Nf4 {[%clk 0:02:06]}  Bxd3 {[%clk 0:02:37]} 15. cxd3 {[%clk 0:01:53]}  O-O {[%clk 0:02:28]} 16. Re1 {[%clk 0:01:49]}  Nf5 {[%clk 0:02:28]} 17. Bf2 {[%clk 0:01:48]}  Rfe8 {[%clk 0:02:28]} 18. Qd2 {[%clk 0:01:44]}  Na5 {[%clk 0:02:12]} 19. Qa2 {[%clk 0:01:29]}  c6 {[%clk 0:02:10]} 20. Rbd1 {[%clk 0:01:20]}  Qd6 {[%clk 0:02:02]} 21. Nh5 {[%clk 0:01:09]}  Kh8 {[%clk 0:01:54]} 22. Ng3 {[%clk 0:01:08]}  Nh4 {[%clk 0:01:44]} 23. c4 {[%clk 0:00:58]}  dxc4 {[%clk 0:01:43]} 24. dxc4 {[%clk 0:00:59]}  Rad8 {[%clk 0:01:33]} 25. d5 {[%clk 0:00:44]}  c5 {[%clk 0:01:23]} 26. Ne4 {[%clk 0:00:43]}  Qf4 {[%clk 0:01:23]} 27. Bg3 {[%clk 0:00:35]}  Nxf3+ {[%clk 0:01:05]} 28. gxf3 {[%clk 0:00:36]}  Qxf3 {[%clk 0:01:06]} 29. Nd6 {[%clk 0:00:31]}  Rxe1+ {[%clk 0:01:02]} 30. Rxe1 {[%clk 0:00:32]}  Rf8 {[%clk 0:00:57]} 31. Nf7+ {[%clk 0:00:31]}  Kg8 {[%clk 0:00:57]} 32. Nd6 {[%clk 0:00:25]}  f5 {[%clk 0:00:46]} 33. Qe2 {[%clk 0:00:22]}  Qxe2 {[%clk 0:00:46]} 34. Rxe2 {[%clk 0:00:22]}  f4 {[%clk 0:00:47]} 35. Bh4 {[%clk 0:00:21]}  h6 {[%clk 0:00:45]} 36. Re7 {[%clk 0:00:20]}  g5 {[%clk 0:00:42]} 37. Bf2 {[%clk 0:00:20]}  a6 {[%clk 0:00:28]} 38. Re6 {[%clk 0:00:20]}  Kg7 {[%clk 0:00:22]} 39. Kg2 {[%clk 0:00:14]}  Nb3 {[%clk 0:00:19]} 40. Ne4 {[%clk 0:00:12]}  b5 {[%clk 0:00:18]} 41. cxb5 {[%clk 0:00:10]}  axb5 {[%clk 0:00:19]} 42. d6 {[%clk 0:00:10]}  c4 {[%clk 0:00:17]} 43. d7 {[%clk 0:00:10]}  Rd8 {[%clk 0:00:17]} 44. Nf6 {[%clk 0:00:08]}  Kf7 {[%clk 0:00:16]} 45. Rc6 {[%clk 0:00:07]}  Nd2 {[%clk 0:00:15]} 46. Rc8 {[%clk 0:00:06]}  Ke7 {[%clk 0:00:12]} 47. Rxd8 {[%clk 0:00:05]}  Kxd8 {[%clk 0:00:12]} 48. Bb6+ {[%clk 0:00:05]}  Ke7 {[%clk 0:00:13]} 49. d8=Q+ {[%clk 0:00:06]}  Ke6 {[%clk 0:00:13]} 50. Qe8+ {[%clk 0:00:06]}  Kf5 {[%clk 0:00:14]} 51. Qd7+ {[%clk 0:00:07]}  Kg6 {[%clk 0:00:14]} 52. Bd4 {[%clk 0:00:07]}  f3+ {[%clk 0:00:12]} 53. Kf2 {[%clk 0:00:06]}  g4 {[%clk 0:00:13]} 54. Qe8+ {[%clk 0:00:05]}  Kf5 {[%clk 0:00:13]} 55. Qe3 {[%clk 0:00:04]}  g3+ {[%clk 0:00:11]} 56. hxg3 {[%clk 0:00:04]}  Nb3 {[%clk 0:00:10]} 57. Qe4+ {[%clk 0:00:04]}  Kg5 {[%clk 0:00:11]} 58. Qf4+ {[%clk 0:00:05]}  Kg6 {[%clk 0:00:11]} 59. Qg4+ {[%clk 0:00:05]}  Kf7 {[%clk 0:00:12]} 60. Kxf3 {[%clk 0:00:05]}  Nd2+ {[%clk 0:00:11]} 61. Ke2 {[%clk 0:00:05]}  Nb3 {[%clk 0:00:11]} 62. Qd7+ {[%clk 0:00:05]}  Kg6 {[%clk 0:00:11]} 63. Qe8+ {[%clk 0:00:06]}  Kg5 {[%clk 0:00:10]} 64. Qg8+ {[%clk 0:00:06]}  Kf5 {[%clk 0:00:10]} 65. Be3 {[%clk 0:00:06]}  Ke5 {[%clk 0:00:08]} 66. Ng4+ {[%clk 0:00:06]}  Kd6 {[%clk 0:00:06]} 67. Qf8+ {[%clk 0:00:06]}  Kc6 {[%clk 0:00:06]} 68. Qe8+ {[%clk 0:00:06]}  Kd5 {[%clk 0:00:07]} 69. Qd7+ {[%clk 0:00:06]}  Ke4 {[%clk 0:00:06]} 70. Qe6# {[%clk 0:00:06]} 1-0


[Site "https://www.chess.com"]